bitfinex/quotes_SOLUSD_20240826
["timestamp","ask_amount","ask_price","bid_price","bid_amount"]
[1724692222769,45.0,157.89,157.81,22.1778]
[1724692223371,6.3351,157.85,157.81,22.1778]
[1724692225172,6.3351,157.85,157.81,15.8412]
[1724692225758,397.1353,157.88,157.79,6.3374]
[1724692226461,6.3366,157.82,157.78,15.8442]
[1724692226783,6.3369,157.81,157.76,22.5419]
[1724692227155,381.3,157.85,157.77,6.338]
[1724692227364,6.3364,157.82,157.78,6.3378]
[1724692231488,6.3367,157.81,157.77,6.3382]
[1724692244387,6.3371,157.8,157.76,28.8804]
[1724692248605,6.338,157.78,157.74,6.3394]
[1724692249095,6.3372,157.8,157.76,6.3387]
[1724692252181,6.3375,157.79,157.76,6.3387]
[1724692253908,6.3372,157.8,157.76,6.3387]
[1724692255171,6.3375,157.79,157.76,6.3387]
[1724692256001,397.1382,157.85,157.78,6.3377]
[1724692256403,6.3366,157.82,157.78,6.3377]
[1724692256572,397.1382,157.85,157.77,6.3381]
[1724692257383,397.1382,157.85,157.76,44.2795]
[1724692257590,45.0,157.84,157.76,44.2795]
[1724692258310,45.0,157.84,157.76,28.833]
[1724692258605,6.3372,157.8,157.76,28.833]
[1724692260308,6.3372,157.8,157.76,22.185]
[1724692261009,397.1401,157.83,157.73,15.849]
[1724692261222,45.0,157.82,157.73,15.849]
[1724692261590,15.8424,157.81,157.73,15.849]
[1724692261792,6.3387,157.76,157.71,6.3403]
[1724692262121,6.3388,157.76,157.72,6.3403]
[1724692262335,6.3384,157.77,157.72,6.3403]
[1724692263196,15.844,157.79,157.72,6.3403]
[1724692263197,6.3387,157.76,157.72,6.3403]
[1724692263825,6.3391,157.75,157.71,22.1919]
[1724692264426,6.3391,157.75,157.71,15.8512]
[1724692265294,15.844,157.79,157.69,6.3415]
[1724692265497,45.0,157.78,157.69,6.3415]
[1724692266392,6.34,157.73,157.69,6.3415]
[1724692271510,6.34,157.73,157.69,7.60967926]
[1724692271926,15.844,157.79,157.7,6.3408]
[1724692272306,6.3398,157.74,157.69,6.3414]
[1724692272507,6.34,157.73,157.69,6.3414]
[1724692276545,6.3403,157.72,157.68,28.1996]
[1724692277037,6.34,157.73,157.69,6.3415]
[1724692277241,6.3394,157.75,157.7,6.3407]
[1724692277541,6.3395,157.74,157.7,6.3407]
[1724692279633,6.3395,157.74,157.69,6.3413]
[1724692279812,15.8462,157.77,157.68,21.8578]
[1724692280015,45.0,157.76,157.68,21.8578]
[1724692280433,6.3405,157.72,157.68,28.1994]
[1724692280809,6.3408,157.71,157.67,0.8079172]
[1724692281305,6.3408,157.71,157.67,7.1501172]
[1724692281941,6.3404,157.72,157.67,7.1501172]
[1724692283017,16.017,157.74,157.67,0.8079172]
[1724692283228,20.0,157.73,157.67,0.8079172]
[1724692283846,6.3413,157.7,157.67,0.8079172]
[1724692292244,6.3415,157.69,157.67,0.8079172]
[1724692293727,6.3412,157.7,157.67,0.8079172]
[1724692293944,20.0,157.73,157.67,16.6634172]
[1724692294244,6.3412,157.7,157.67,16.6634172]
[1724692294646,6.3412,157.7,157.67,0.8079172]
[1724692295039,6.3404,157.72,157.68,6.3419]
[1724692295340,6.3404,157.72,157.67,7.1501172]
[1724692295869,381.3,157.75,157.68,73.1706626]
[1724692296326,381.3,157.75,157.69,6.3744]
[1724692296528,6.3398,157.74,157.69,12.7158]
[1724692299252,6.3398,157.74,157.7,6.341]
[1724692299564,6.3399,157.73,157.69,12.7159]
[1724692304965,6.3399,157.73,157.68,15.8543]
[1724692305172,6.3403,157.72,157.69,1.58753696]
[1724692305376,6.3403,157.72,157.68,22.1962]
[1724692305869,6.3403,157.72,157.69,1.58753757]
[1724692306448,6.3403,157.72,157.68,22.1962]
[1724692306753,6.3403,157.72,157.69,1.58753727]
[1724692306954,6.3403,157.72,157.68,22.1962]
[1724692307161,6.3403,157.72,157.69,1.58753757]
[1724692307381,6.3403,157.72,157.68,22.1962]
[1724692307671,6.3403,157.72,157.69,1.58753727]
[1724692307876,6.3403,157.72,157.68,22.1962]
[1724692308068,6.3403,157.72,157.69,1.58753727]
[1724692308243,6.3403,157.72,157.68,22.1962]
[1724692308440,6.3403,157.72,157.69,1.58753757]
[1724692308662,6.3403,157.72,157.68,22.1962]
[1724692308869,6.3403,157.72,157.69,1.58753741]
[1724692309249,6.3403,157.72,157.68,22.1962]
[1724692309250,6.3403,157.72,157.7,1.58753741]
[1724692309445,6.3403,157.72,157.68,22.1962]
[1724692309674,6.3403,157.72,157.69,1.587532]
[1724692309902,387.6394,157.75,157.7,17.439932]
[1724692310174,387.6394,157.75,157.7,15.8524]
[1724692310377,381.3,157.75,157.72,15.8503]
[1724692310871,381.3,157.75,157.73,6.3396]
[1724692312270,381.3,157.75,157.72,22.1905]
[1724692313946,381.3,157.75,157.74,6.3395]
[1724692314149,381.3,157.84,157.74,13.90347774]
[1724692314376,6.3363,157.82,157.77,6.338]
[1724692315166,6.336,157.83,157.76,43.5028626]
[1724692315372,6.3368,157.81,157.76,37.5251]
[1724692316086,6.3371,157.8,157.76,15.8461]
[1724692319295,6.3375,157.79,157.75,6.339]
[1724692319580,6.3382,157.78,157.73,15.8492]
[1724692319955,6.3391,157.76,157.7,15.8525]
[1724692320158,6.3391,157.76,157.72,6.3403]
[1724692321283,381.3,157.78,157.7,15.8525]
[1724692322286,6.3388,157.76,157.71,6.3404]
[1724692325795,6.3388,157.76,157.72,6.3403]
[1724692328084,6.3395,157.74,157.7,22.1935]
[1724692328789,381.3,157.78,157.68,6.3419]
[1724692328790,6.3405,157.72,157.68,6.3419]
[1724692332866,6.3402,157.73,157.69,6.3415]
[1724692335390,381.3,157.75,157.68,15.8546]
[1724692335572,381.3,157.75,157.67,0.8079172]
[1724692335774,6.3409,157.71,157.67,0.8079172]
[1724692336210,6.3412,157.7,157.67,0.8079172]
[1724692336596,15.8511,157.72,157.67,0.8079172]
[1724692337105,6.3416,157.69,157.67,0.8079172]
[1724692342107,6.3419,157.68,157.67,0.8079172]
[1724692361520,51.3419,157.68,157.67,0.8079172]
[1724692367845,71.3419,157.68,157.67,0.8079172]
[1724692371032,26.3419,157.68,157.67,0.8079172]
[1724692372738,6.3419,157.68,157.67,0.8079172]
[1724692384358,51.3419,157.68,157.67,0.8079172]
[1724692385840,432.6419,157.68,157.67,0.8079172]
[1724692388355,387.6419,157.68,157.67,0.8079172]
[1724692391772,6.3419,157.68,157.67,0.8079172]
[1724692399190,71.3419,157.68,157.67,0.8079172]
[1724692410186,77.61176276,157.68,157.67,0.8079172]
[1724692412214,77.61176276,157.68,157.67,1.72e-05]
[1724692420128,84.21737475,157.68,157.67,1.72e-05]
[1724692421503,420.51737475,157.68,157.67,1.72e-05]
[1724692421692,413.91176276,157.68,157.67,1.72e-05]
[1724692422737,458.91176276,157.68,157.67,1.72e-05]
[1724692422886,478.91176276,157.68,157.67,1.72e-05]
[1724692424087,472.56986276,157.68,157.67,1.72e-05]
[1724692424320,452.56986276,157.68,157.67,1.72e-05]
[1724692425399,458.91176276,157.68,157.67,1.72e-05]
[1724692427438,77.61176276,157.68,157.67,1.72e-05]
[1724692428021,97.61176276,157.68,157.67,1.72e-05]
[1724692440251,104.21699864,157.68,157.67,1.72e-05]
[1724692453160,107.54831895,157.68,157.67,1.72e-05]
[1724692455748,104.21699864,157.68,157.67,1.72e-05]
[1724692457580,107.54786892,157.68,157.67,1.72e-05]
[1724692457950,87.54786892,157.68,157.67,1.72e-05]
[1724692458157,39.21699864,157.68,157.67,1.72e-05]
[1724692458368,32.61176276,157.68,157.67,1.72e-05]
[1724692460372,77.61176276,157.68,157.67,1.72e-05]
[1724692461763,97.61176276,157.68,157.67,1.72e-05]
[1724692461970,104.22808624,157.68,157.67,1.72e-05]
[1724692462353,107.55895652,157.68,157.67,1.72e-05]
[1724692462556,6.3447,157.61,157.6,6.295]
[1724692471075,6.3447,157.61,157.51,28.9958712]
[1724692471076,6.3463,157.57,157.56,6.3004]
[1724692472157,6.346,157.58,157.56,6.3004]
[1724692472682,6.3463,157.57,157.56,6.3004]
[1724692480887,22.13116276,157.62,157.52,6.3483]
[1724692480888,6.3474,157.55,157.52,6.3853]
[1724692482260,15.8652,157.58,157.52,12.7336]
[1724692482261,6.347,157.56,157.52,12.7336]
[1724692482656,6.26986276,157.62,157.52,6.3853]
[1724692482957,6.3466,157.57,157.53,22.2177]
[1724692483271,6.3466,157.57,157.53,15.8698]
[1724692485483,6.3469,157.56,157.53,15.8698]
[1724692485689,35.8633,157.6,157.52,6.3853]
[1724692485983,6.3473,157.55,157.52,6.3853]
[1724692492997,6.3476,157.54,157.52,6.3853]
[1724692495708,6.3473,157.55,157.52,6.3853]
[1724692502523,6.3469,157.56,157.52,12.7336]
[1724692503410,6.3469,157.56,157.52,14.00291999]
[1724692503706,6.3469,157.56,157.52,12.7336]
[1724692504317,6.3472,157.55,157.52,6.3853]
[1724692505199,6.3472,157.55,157.53,1.58919294]
[1724692505501,6.3472,157.55,157.52,6.3853]
[1724692505880,6.3472,157.55,157.53,1.58918664]
[1724692506219,6.26986276,157.62,157.53,15.6755]
[1724692506387,6.26986276,157.62,157.58,22.0212]
[1724692506388,6.3445,157.62,157.58,22.0212]
[1724692506588,6.3445,157.62,157.59,1.26887624]
[1724692507584,6.3445,157.62,157.58,15.6755]
[1724692508208,6.3445,157.62,157.59,1.58872551]
[1724692508414,6.3445,157.62,157.6,1.26886761]
[1724692508783,5.92153498,157.67,157.6,6.4502]
[1724692509004,397.1544,157.69,157.6,12.7952]
[1724692509208,397.1544,157.69,157.6,6.4502]
[1724692509209,6.3436,157.64,157.6,6.4502]
[1724692511210,6.3432,157.65,157.6,12.7952]
[1724692511517,6.3436,157.64,157.6,6.4502]
[1724692512025,6.3436,157.64,157.6,12.7952]
[1724692512209,6.3436,157.64,157.6,6.4502]
[1724692512527,6.3446,157.62,157.58,31.5401]
[1724692513416,6.3446,157.62,157.58,37.886]
[1724692513918,6.344,157.63,157.59,6.3454]
[1724692514295,381.3,157.68,157.6,15.8626]
[1724692514495,20.0,157.67,157.61,7.2967236]
[1724692514898,20.0,157.67,157.61,6.0281]
[1724692515090,20.0,157.69,157.61,6.0281]
[1724692515404,20.0,157.69,157.61,7.29669816]
[1724692515606,6.3424,157.67,157.63,6.3438]
[1724692516111,6.3427,157.66,157.62,21.6727]
[1724692518806,6.3427,157.66,157.62,15.3284]
[1724692518999,20.0,157.69,157.62,21.6725]
[1724692519222,6.3422,157.68,157.63,6.3438]
[1724692519919,6.3424,157.67,157.63,6.3438]
[1724692522650,6.3412,157.7,157.66,6.3427]
[1724692522831,6.3412,157.7,157.67,1.26823555]
[1724692523127,397.1503,157.73,157.67,6.3423]
[1724692523128,6.3408,157.71,157.67,6.3423]
[1724692523329,21.76895351,157.76,157.69,6.3414]
[1724692523637,6.3396,157.74,157.7,6.3411]
[1724692524216,6.3396,157.74,157.7,7.60898005]
[1724692524529,6.3396,157.74,157.71,1.26787891]
[1724692525338,6.3396,157.74,157.71,7.38857891]
[1724692525543,6.3391,157.76,157.71,13.72927891]
[1724692525839,6.3391,157.76,157.72,6.3402]
[1724692526425,6.3391,157.76,157.71,13.72917891]
[1724692526723,6.3391,157.76,157.73,1.26772785]
[1724692526936,6.3384,157.77,157.74,1.26772536]
[1724692527520,6.3384,157.77,157.71,18.4370626]
[1724692527843,6.3384,157.77,157.71,19.70471694]
[1724692528033,6.3384,157.77,157.71,18.4370626]
[1724692528226,6.3384,157.77,157.72,6.3402]
[1724692528423,6.3387,157.76,157.73,15.8186]
[1724692531643,6.3393,157.75,157.73,15.8186]
[1724692531842,6.3398,157.74,157.71,6.1207]
[1724692533441,15.8452,157.78,157.69,16.4703]
[1724692533655,6.34,157.73,157.69,22.8117]
[1724692535543,6.3396,157.74,157.69,22.8117]
[1724692536540,6.3396,157.74,157.7,7.60898184]
[1724692536754,15.8452,157.78,157.71,6.3406]
[1724692537031,15.8452,157.78,157.69,44.6401626]
[1724692538347,381.3,157.8,157.73,6.3399]
[1724692538348,6.3383,157.77,157.73,6.3399]
[1724692538537,6.3383,157.77,157.73,12.6906]
[1724692541941,6.3388,157.76,157.73,6.3507]
[1724692542141,6.3391,157.75,157.71,22.1916]
[1724692544342,6.3389,157.76,157.72,6.3402]
[1724692545654,6.3379,157.78,157.74,6.3394]
[1724692545832,6.3379,157.78,157.75,1.26755225]
[1724692546031,6.3375,157.79,157.75,7.60625225]
[1724692546234,6.3372,157.8,157.76,6.3387]
[1724692546456,6.3372,157.8,157.77,1.26743281]
[1724692546663,6.3372,157.8,157.76,6.3387]
[1724692546872,6.3372,157.8,157.75,22.0178]
[1724692546873,6.3375,157.79,157.75,28.3568]
[1724692547155,6.338,157.78,157.75,15.8476]
[1724692551265,15.8407,157.83,157.75,15.8476]
[1724692551446,6.3372,157.8,157.76,6.3386]
[1724692554066,6.3372,157.8,157.77,1.26740333]
[1724692560651,6.3364,157.82,157.78,7.60500389]
[1724692560846,6.336,157.83,157.79,6.3375]
[1724692561054,6.336,157.83,157.8,1.26718532]
[1724692561680,6.3351,157.85,157.8,1.26718532]
[1724692561891,396.7866,157.93,157.81,15.2404]
[1724692562067,15.8313,157.92,157.81,16.50711928]
[1724692562264,15.8313,157.92,157.84,6.3354]
[1724692562457,15.8313,157.92,157.85,1.26675368]
[1724692563087,15.8313,157.92,157.86,1.2667414]
[1724692563389,6.334,157.88,157.84,6.3354]
[1724692563966,6.334,157.88,157.83,22.1752]
[1724692564666,6.3344,157.87,157.83,22.1752]
[1724692564868,6.3344,157.87,157.83,15.8394]
[1724692565066,6.3347,157.86,157.82,12.3623]
[1724692567787,6.3343,157.87,157.83,6.3358]
[1724692576500,6.3339,157.88,157.84,6.3354]
[1724692577087,6.3339,157.88,157.83,6.3357]
[1724692577304,381.3,157.94,157.85,15.8376]
[1724692577505,5.59272573,157.95,157.85,22.1727]
[1724692577799,6.3334,157.9,157.85,22.1727]
[1724692578004,6.3334,157.9,157.86,6.3346]
[1724692579118,6.3334,157.9,157.86,7.60109785]
[1724692579613,6.3334,157.9,157.86,6.3346]
[1724692580416,6.3334,157.9,157.87,1.26650347]
[1724692581117,15.8294,157.94,157.87,1.26650347]
[1724692581118,6.3327,157.91,157.87,1.26650347]
[1724692581284,6.3327,157.91,157.86,6.3346]
[1724692585298,6.3331,157.9,157.86,6.3346]
[1724692585497,6.3335,157.89,157.85,22.1726]
[1724692588514,6.3332,157.9,157.85,22.1726]
[1724692588891,6.3332,157.9,157.86,6.3346]
[1724692589314,6.3328,157.91,157.86,6.3346]
[1724692589501,6.3328,157.91,157.87,16.67792302]
[1724692590111,6.3328,157.91,157.87,15.4114]
[1724692591121,6.3331,157.9,157.87,15.4114]
[1724692591307,6.3331,157.9,157.86,6.3346]
[1724692593603,6.3335,157.89,157.85,22.1726]
[1724692594198,6.3331,157.9,157.86,6.3346]
[1724692595327,412.8541,157.97,157.87,15.8352]
[1724692595506,20.0,157.96,157.87,15.8352]
[1724692596507,6.3328,157.91,157.87,22.1694]
[1724692597396,6.3323,157.92,157.88,6.3338]
[1724692597601,6.332,157.93,157.89,1.26637082]
[1724692597797,6.332,157.93,157.9,1.26630508]
[1724692598321,6.332,157.93,157.89,6.3333]
[1724692600227,6.332,157.93,157.9,1.26626868]
[1724692600603,6.332,157.93,157.9,1.2662596]
[1724692601827,6.332,157.93,157.89,6.3333]
[1724692602928,6.3323,157.92,157.88,21.8048]
[1724692603112,6.3324,157.92,157.88,15.471]
[1724692604016,6.3328,157.91,157.87,28.7629]
[1724692604224,6.3328,157.91,157.87,22.429]
[1724692605504,6.3328,157.91,157.87,28.7632]
[1724692607023,6.3323,157.92,157.87,28.7632]
[1724692607206,6.3323,157.92,157.88,6.3339]
[1724692607717,6.3319,157.93,157.89,1.2658992]
[1724692607926,6.3319,157.93,157.9,1.2663108]
[1724692608329,6.3319,157.93,157.88,6.3339]
[1724692609327,6.3319,157.93,157.89,6.3334]
[1724692616414,6.3334,157.9,157.87,6.5938]
[1724692616631,6.3328,157.91,157.87,6.5938]
[1724692617335,6.3328,157.91,157.87,12.928]
[1724692617632,6.3328,157.91,157.87,6.3342]
[1724692620243,6.3324,157.92,157.87,6.3342]
[1724692620407,6.3319,157.93,157.89,6.3334]
[1724692622415,6.3318,157.94,157.89,27.8122]
[1724692623427,6.3319,157.93,157.89,27.8122]
[1724692623925,6.3315,157.94,157.89,27.8122]
[1724692626344,6.3308,157.96,157.91,6.3324]
[1724692626531,6.3308,157.96,157.92,1.07989645]
[1724692626715,6.3308,157.96,157.93,1.07992385]
[1724692627720,6.3308,157.96,157.92,1.07992384]
[1724692628121,6.3311,157.95,157.92,1.07992384]
[1724692629131,6.3311,157.95,157.9,22.1652]
[1724692631314,6.3311,157.95,157.91,6.3326]
[1724692632127,6.3315,157.94,157.9,22.1653]
[1724692632843,47.4696,158.0,157.9,22.1653]
[1724692632844,6.3312,157.95,157.9,22.1653]
[1724692634444,6.3315,157.94,157.9,22.1653]
[1724692634819,6.3312,157.95,157.91,6.3325]
[1724692635520,6.3312,157.95,157.92,1.07983395]
[1724692635943,6.3312,157.95,157.93,1.07976557]
[1724692636541,6.3312,157.95,157.91,6.3325]
[1724692636745,6.3312,157.95,157.92,1.2661049]
[1724692636955,6.3312,157.95,157.93,1.26602473]
[1724692637247,6.3312,157.95,157.92,1.26610574]
[1724692637549,6.3312,157.95,157.93,1.26602557]
[1724692638651,6.3312,157.95,157.91,6.3325]
[1724692639429,6.3312,157.95,157.92,1.26554455]
[1724692639629,6.3312,157.95,157.93,1.26546441]
[1724692639836,6.3312,157.95,157.92,1.26498361]
[1724692640146,6.3312,157.95,157.91,6.3325]
[1724692640337,6.3312,157.95,157.91,7.59700298]
[1724692641840,6.3316,157.94,157.9,22.1652]
[1724692644154,6.3327,157.91,157.89,6.2413]
[1724692644361,6.3327,157.91,157.87,22.1692]
[1724692645727,6.3343,157.87,157.85,6.5528]
[1724692645927,6.3343,157.87,157.82,22.9025]
[1724692646145,6.334,157.88,157.83,7.92172687]
[1724692646347,6.334,157.88,157.84,1.58592687]
[1724692646553,6.334,157.88,157.83,6.3358]
[1724692646736,6.334,157.88,157.84,6.3354]
[1724692649953,6.3346,157.87,157.83,1.58608874]
[1724692650265,6.3346,157.87,157.83,6.3359]
[1724692653659,6.0085,157.93,157.81,21.9182]
[1724692653660,6.3347,157.86,157.81,21.9182]
[1724692653850,6.3347,157.86,157.82,6.3363]
[1724692654659,6.3344,157.87,157.82,6.3363]
[1724692655742,6.3347,157.86,157.82,6.3363]
[1724692657973,32.1144,157.9,157.78,47.4316]
[1724692657974,16.2813,157.9,157.78,47.4316]
[1724692658144,6.3365,157.82,157.78,22.1821]
[1724692658465,6.5949,157.88,157.78,22.1821]
[1724692658466,6.336,157.83,157.78,22.1821]
[1724692659070,6.336,157.83,157.79,6.3374]
[1724692659663,6.336,157.83,157.78,22.1822]
[1724692663950,6.336,157.83,157.79,6.3374]
[1724692664968,6.336,157.83,157.78,15.8443]
[1724692664969,6.336,157.83,157.78,22.1821]
[1724692670290,6.336,157.83,157.79,6.3375]
[1724692672574,6.3364,157.82,157.78,22.1821]
[1724692674078,16.4048,157.85,157.75,15.8472]
[1724692674280,6.3368,157.81,157.77,6.3382]
[1724692676688,6.3372,157.8,157.76,6.3386]
[1724692676993,6.3372,157.8,157.75,15.8472]
[1724692676994,6.3377,157.79,157.75,15.8472]
[1724692677859,6.3377,157.79,157.75,22.1862]
[1724692683996,6.1759,157.83,157.72,15.8501]
[1724692684302,6.3388,157.76,157.72,22.1904]
[1724692684871,6.3384,157.77,157.72,22.1904]
[1724692686502,6.3387,157.76,157.72,22.1904]
[1724692687603,6.3387,157.76,157.72,15.8501]
[1724692688200,6.3398,157.74,157.7,6.3411]
[1724692689097,6.3398,157.74,157.69,28.7073]
[1724692689302,6.3398,157.74,157.69,22.1946]
[1724692690500,15.8473,157.76,157.68,6.3418]
[1724692690676,45.0,157.75,157.68,6.3418]
[1724692691481,6.3406,157.72,157.68,6.3418]
[1724692692205,6.3407,157.71,157.67,6.3423]
[1724692693695,45.0,157.75,157.61,22.5748]
[1724692693696,6.3419,157.68,157.64,6.3434]
[1724692693877,6.3419,157.68,157.63,22.2031]
[1724692694579,6.3419,157.68,157.64,6.3434]
[1724692698617,6.3419,157.68,157.63,22.2031]
[1724692698815,6.3424,157.67,157.63,22.2031]
[1724692699318,6.342,157.68,157.63,22.2031]
[1724692701919,413.5719,157.72,157.6,15.8624]
[1724692702121,65.0,157.71,157.6,15.8624]
[1724692703015,6.3424,157.67,157.62,6.344]
[1724692704590,6.3427,157.66,157.62,6.344]
[1724692705412,6.3432,157.65,157.6,22.2072]
[1724692705920,6.3432,157.65,157.6,22.2074]
[1724692706798,6.3432,157.65,157.61,6.3447]
[1724692708097,6.3432,157.65,157.6,22.2074]
[1724692709917,6.3436,157.64,157.6,22.2074]
[1724692713526,6.344,157.63,157.6,15.8624]
[1724692715036,15.8583,157.65,157.57,15.8653]
[1724692715364,45.0,157.64,157.57,15.8653]
[1724692715844,15.8605,157.63,157.54,22.2159]
[1724692716004,45.0,157.62,157.54,15.8684]
[1724692716205,6.3452,157.6,157.55,6.3471]
[1724692717330,6.3452,157.6,157.54,15.8684]
[1724692717331,6.3452,157.6,157.56,6.3467]
[1724692718435,6.3452,157.6,157.55,6.347]
[1724692718731,6.3452,157.6,157.56,6.3467]
[1724692720635,6.3452,157.6,157.55,6.3471]
[1724692721014,6.3456,157.59,157.55,6.3471]
[1724692725539,6.3447,157.61,157.56,6.3467]
[1724692725743,60.8796,157.62,157.54,15.8684]
[1724692725744,6.3453,157.6,157.55,6.3468]
[1724692726849,6.346,157.58,157.54,22.2159]
[1724692727225,6.3457,157.59,157.54,22.2159]
[1724692730381,6.346,157.58,157.54,22.2159]
[1724692733158,6.3464,157.57,157.53,6.3479]
[1724692736946,442.1796,157.62,157.51,0.8079086]
[1724692737146,6.3474,157.55,157.51,0.8079086]
[1724692737902,6.3474,157.55,157.51,7.1566086]
[1724692740442,6.3474,157.55,157.51,0.8079086]
[1724692740862,6.3477,157.54,157.51,0.8079086]
[1724692742369,6.348,157.53,157.51,0.8079086]
[1724692743282,6.3477,157.54,157.51,0.8079086]
[1724692745551,6.3484,157.52,157.51,0.8079086]
[1724692746551,6.348,157.53,157.51,0.8079086]
[1724692750015,6.3484,157.52,157.51,0.8079086]
[1724692755423,6.3481,157.53,157.51,0.8079086]
[1724692755609,6.3477,157.54,157.51,0.8079086]
[1724692757107,6.3472,157.55,157.51,0.8079086]
[1724692757612,6.3464,157.57,157.52,6.3483]
[1724692757919,6.3468,157.56,157.51,0.8079086]
[1724692758116,6.3468,157.56,157.51,7.1565086]
[1724692759493,6.3468,157.56,157.52,6.3483]
[1724692759682,6.3468,157.56,157.51,0.8079086]
[1724692760483,6.3468,157.56,157.51,7.1566086]
[1724692763618,6.3472,157.55,157.51,0.8079086]
[1724692763910,6.3477,157.54,157.51,0.8079086]
[1724692765308,15.8634,157.6,157.51,0.8079086]
[1724692765309,6.348,157.53,157.51,0.8079086]
[1724692768807,6.3484,157.52,157.51,0.8079086]
[1724692775244,26.3484,157.52,157.51,0.8079086]
[1724692776221,87.9333,157.52,157.51,0.8079086]
[1724692777328,107.9333,157.52,157.51,8.6e-06]
[1724692777517,114.01218535,157.52,157.51,8.6e-06]
[1724692778103,120.26898535,157.52,157.51,8.6e-06]
[1724692778337,120.26898535,157.52,157.39,6.6008]
[1724692778338,6.3524,157.42,157.39,6.6008]
[1724692780936,6.3521,157.43,157.39,6.6008]
[1724692781308,6.3524,157.42,157.39,6.6008]
[1724692782231,6.352,157.43,157.39,6.6008]
[1724692783511,381.3,157.48,157.4,1.26888617]
[1724692783714,6.3509,157.46,157.42,6.3524]
[1724692783915,6.3509,157.46,157.41,6.3527]
[1724692784128,381.3,157.48,157.42,16.2082]
[1724692784431,387.65,157.48,157.43,1.26824149]
[1724692784634,387.65,157.48,157.43,7.62014149]
[1724692786128,387.65,157.48,157.43,6.3519]
[1724692786434,6.3506,157.47,157.42,16.2082]
[1724692787065,6.3506,157.47,157.42,22.5603]
[1724692787236,387.6501,157.48,157.43,6.3518]
[1724692787434,6.3501,157.48,157.43,6.3518]
[1724692787738,20.0,157.52,157.45,6.3509]
[1724692787946,20.0,157.53,157.45,6.3509]
[1724692788755,6.3494,157.5,157.45,12.6432]
[1724692788928,6.3488,157.51,157.46,6.3506]
[1724692789127,387.37888535,157.55,157.47,6.3501]
[1724692789355,6.07888535,157.55,157.45,22.1699]
[1724692789562,6.07888535,157.55,157.47,15.8756]
[1724692789733,6.3478,157.54,157.49,6.3495]
[1724692789933,6.348,157.53,157.49,6.3495]
[1724692790132,6.348,157.53,157.48,22.5581]
[1724692791262,6.3484,157.52,157.48,22.5581]
[1724692792159,6.3484,157.52,157.48,16.2082]
[1724692793465,6.3488,157.51,157.48,16.2082]
[1724692794159,15.8694,157.54,157.45,6.2923]
[1724692794388,65.0,157.53,157.45,6.2923]
[1724692794561,6.3499,157.49,157.45,6.2923]
[1724692796781,6.3501,157.48,157.45,6.2923]
[1724692799971,6.3504,157.47,157.43,37.9996]
[1724692800883,6.3504,157.47,157.43,31.6477]
[1724692801462,6.3512,157.45,157.41,12.6135]
[1724692801684,6.3514,157.45,157.41,6.2608]
[1724692803652,6.3514,157.45,157.41,12.6135]
[1724692804377,6.3509,157.46,157.41,12.6135]
[1724692805093,387.6488,157.51,157.46,6.3506]
[1724692805386,6.3488,157.51,157.46,6.3506]
[1724692806088,6.3497,157.49,157.45,31.73]
[1724692806380,6.35,157.48,157.45,15.853]
[1724692806689,6.3496,157.49,157.45,15.853]
[1724692807053,6.3492,157.5,157.45,22.2041]
[1724692807884,6.3496,157.49,157.45,15.853]
[1724692808251,6.35,157.48,157.45,15.853]
[1724692808479,6.07888535,157.54,157.45,15.853]
[1724692808666,15.8714,157.52,157.42,15.8809]
[1724692808982,6.3504,157.47,157.42,15.8809]
[1724692809165,6.35,157.48,157.43,6.352]
[1724692809761,6.3504,157.47,157.42,22.2332]